fUSD/lending_fUSD_20250616
["ID","MTS","AMOUNT","RATE_DAILY","PERIOD"]
[366192433,1750107048369,-4951.22,0.00015824,2]
[366192434,1750107048380,-490.0,0.00015824,2]
[366192435,1750107048390,-490.0,0.00015824,2]
[366192436,1750107048400,-490.0,0.00015824,2]
[366192437,1750107048410,-490.0,0.00015824,2]
[366192438,1750107048420,-580.65,0.00015824,2]
[366192439,1750107048430,-626.75,0.00015824,2]
[366192440,1750107048440,-619.68,0.00015824,2]
[366192441,1750107048450,-498.85,0.00015824,2]
[366192442,1750107048459,-490.0,0.00015824,2]
[366192443,1750107048469,-490.0,0.00015824,2]
[366192444,1750107048479,-490.0,0.00015824,2]
[366192445,1750107048490,-506.21,0.00015824,2]
[366192446,1750107048499,-1860.62,0.00015824,2]
[366192447,1750107048509,-490.0,0.00015824,2]
[366192448,1750107048519,-490.0,0.00015824,2]
[366192449,1750107048529,-699.31,0.00015824,2]
[366192450,1750107048540,-490.0,0.00015824,2]
[366192451,1750107048550,-490.0,0.00015824,2]
[366192452,1750107048559,-490.0,0.00015824,2]
[366192453,1750107048569,-490.0,0.00015824,2]
[366192454,1750107048578,-490.0,0.00015824,2]
[366192455,1750107048588,-490.0,0.00015824,2]
[366192456,1750107048598,-490.0,0.00015824,2]
[366192457,1750107048608,-490.0,0.00015824,2]
[366192458,1750107048618,-490.0,0.00015824,2]
[366192459,1750107048628,-490.0,0.00015824,2]
[366192460,1750107048638,-6306.36,0.00015824,2]
[366192461,1750107048647,-490.0,0.00015825,2]
[366192462,1750107048657,-490.0,0.00015825,2]
[366192463,1750107048667,-490.0,0.00015825,2]
[366192464,1750107048677,-490.0,0.00015825,2]
[366192465,1750107048687,-490.0,0.00015825,2]
[366192466,1750107048697,-490.0,0.00015825,2]
[366192467,1750107048707,-490.0,0.00015825,2]
[366192468,1750107048717,-490.0,0.00015825,2]
[366192469,1750107048727,-490.0,0.00015825,2]
[366192470,1750107048739,-490.0,0.00015825,2]
[366192471,1750107048751,-490.0,0.00015825,2]
[366192472,1750107048761,-490.0,0.00015825,2]
[366192473,1750107048771,-490.0,0.00015825,2]
[366192474,1750107048780,-490.0,0.00015825,2]
[366192475,1750107048790,-490.0,0.00015825,2]
[366192476,1750107048801,-490.0,0.00015825,2]
[366192477,1750107048811,-490.0,0.00015825,2]
[366192478,1750107048823,-490.0,0.00015825,2]
[366192479,1750107048833,-490.0,0.00015825,2]
[366192480,1750107048843,-490.0,0.00015825,2]
[366192481,1750107048852,-490.0,0.00015825,2]
[366192482,1750107048862,-490.0,0.00015825,2]
[366192483,1750107048872,-490.0,0.00015825,2]
[366192484,1750107048882,-719.1,0.00015825,2]
[366192485,1750107048892,-490.0,0.00015825,2]
[366192486,1750107048902,-490.0,0.00015825,2]
[366192487,1750107048913,-490.0,0.00015825,2]
[366192488,1750107048922,-500.35,0.00015825,2]
[366192489,1750107048932,-490.0,0.00015825,2]
[366192490,1750107048942,-498.04,0.00015825,2]
[366192491,1750107048952,-490.0,0.00015825,2]
[366192492,1750107048962,-490.0,0.00015825,2]
[366192493,1750107048971,-490.0,0.00015825,2]
[366192494,1750107048981,-520.16,0.00015825,2]
[366192495,1750107048992,-490.0,0.00015825,2]
[366192496,1750107049002,-490.0,0.00015825,2]
[366192497,1750107049011,-490.0,0.00015825,2]
[366192498,1750107049021,-490.0,0.00015825,2]
[366192499,1750107049031,-490.0,0.00015825,2]
[366192500,1750107049041,-490.0,0.00015825,2]
[366192501,1750107049051,-801.76,0.00015825,2]
[366192502,1750107049060,-490.0,0.00015825,2]
[366192503,1750107049071,-526.8,0.00015825,2]
[366192504,1750107049080,-490.0,0.00015825,2]
[366192505,1750107049090,-548.44,0.00015825,2]
[366192506,1750107049100,-490.0,0.00015825,2]
[366192507,1750107049109,-908.38,0.00015825,2]
[366192508,1750107049119,-499.77,0.00015826,2]
[366192509,1750107049129,-510.77,0.00015826,2]
[366192510,1750107049139,-507.38,0.00015826,2]
[366192511,1750107049148,-490.0,0.00015826,2]
[366192512,1750107049157,-490.0,0.00015826,2]
[366192513,1750107049167,-693.42,0.00015826,2]
[366192514,1750107049177,-490.0,0.00015826,2]
[366192515,1750107049187,-490.0,0.00015826,2]
[366192516,1750107049199,-558.06352037,0.0001585,2]
[366192517,1750107049209,-169.82298823,0.00015888,2]
[366192518,1750107049219,-500.0,0.000159,5]
[366192519,1750107049230,-152.63354982,0.000159,2]
[366192520,1750107049240,-500.0,0.00015904,2]
[366192521,1750107049250,-500.0,0.00015904,2]
[366192522,1750107049504,-2812.26171337,0.00015912,2]
[366192523,1750107049515,-168.0,0.00015915,2]
[366192524,1750107049525,-250.0,0.00015921,2]
[366192525,1750107049535,-250.0,0.00015949,2]
[366192526,1750107049544,-490.0,0.00015988,2]
[366192527,1750107049554,-490.0,0.00015988,2]
[366192528,1750107049564,-490.0,0.00015988,2]
[366192529,1750107049574,-490.0,0.00015988,2]
[366192530,1750107049585,-490.0,0.00015988,2]
[366192531,1750107049594,-525.97,0.00015988,2]
[366192532,1750107049604,-490.0,0.00015988,2]
[366192533,1750107049614,-490.0,0.00015988,2]
[366192534,1750107049624,-490.0,0.00015988,2]
[366192535,1750107049634,-490.0,0.00015988,2]
[366192536,1750107049643,-490.0,0.00015988,2]
[366192537,1750107049653,-490.0,0.00015988,2]
[366192538,1750107049663,-490.0,0.00015988,2]
[366192539,1750107049672,-490.0,0.00015988,2]
[366192540,1750107049682,-490.0,0.00015988,2]
[366192541,1750107049691,-490.0,0.00015988,2]
[366192542,1750107049701,-559.49,0.00015988,2]
[366192543,1750107049711,-490.0,0.00015988,2]
[366192544,1750107049720,-490.0,0.00015988,2]
[366192545,1750107049730,-490.0,0.00015988,2]
[366192546,1750107049740,-490.0,0.00015988,2]
[366192547,1750107049755,-490.0,0.00015988,2]
[366192548,1750107049765,-490.0,0.00015988,2]
[366192549,1750107049775,-490.0,0.00015988,2]
[366192550,1750107049784,-490.0,0.00015988,2]
[366192551,1750107049794,-280.45392414,0.00015988,2]
[366192552,1750107049804,-490.0,0.00015988,2]
[366192553,1750107049814,-490.0,0.00015988,2]
[366192554,1750107049824,-490.0,0.00015988,2]
[366192555,1750107049835,-490.0,0.00015988,2]
[366192556,1750107049845,-490.0,0.00015988,2]
[366192557,1750107049855,-354.56,0.00015988,2]
[366192558,1750107049865,-490.0,0.00015988,2]
[366192559,1750107049874,-490.0,0.00015988,2]
[366192560,1750107049884,-490.0,0.00015988,2]
[366192561,1750107049894,-490.0,0.00015988,2]
[366192562,1750107049903,-490.0,0.00015988,2]
[366192563,1750107049913,-490.0,0.00015988,2]
[366192564,1750107049923,-553.56,0.00015988,2]
[366192565,1750107049933,-170.44,0.00015988,2]
[366192566,1750107049942,-490.0,0.00015988,2]
[366192567,1750107049952,-512.22,0.00015988,2]
[366192568,1750107049964,-490.0,0.00015988,2]
[366192569,1750107049973,-1008.651933,0.00015988,2]
[366192570,1750107049983,-490.0,0.00015988,2]
[366192571,1750107050002,-490.0,0.00015988,2]
[366192572,1750107050012,-490.0,0.00015988,2]
[366192573,1750107050022,-490.0,0.00015988,2]
[366192574,1750107050031,-490.0,0.00015988,2]
[366192575,1750107050041,-440.96668557,0.00015988,2]
[366192576,1750107050051,-948.77,0.00015988,2]
[366192577,1750107050060,-599.758543,0.00015988,2]
[366192578,1750107050070,-490.0,0.00015988,2]
[366192579,1750107050080,-490.0,0.00015988,2]
[366192580,1750107050089,-490.0,0.00015988,2]
[366192581,1750107050099,-490.0,0.00015988,2]
[366192582,1750107050108,-696.42,0.00015988,2]
[366192583,1750107050118,-490.0,0.00015988,2]
[366192584,1750107050128,-490.0,0.00015988,2]
[366192585,1750107050138,-490.0,0.00015988,2]
[366192586,1750107050147,-490.0,0.00015988,2]
[366192587,1750107050157,-490.0,0.00015988,2]
[366192588,1750107050166,-490.0,0.00015988,2]
[366192589,1750107050176,-490.0,0.00015988,2]
[366192590,1750107050186,-2109.94,0.00015988,2]
[366192591,1750107050196,-490.0,0.00015988,2]
[366192592,1750107050205,-5759.16,0.00015988,2]
[366192593,1750107050215,-1727.06,0.00015988,2]
[366192594,1750107050224,-490.0,0.00015988,2]
[366192595,1750107050233,-490.0,0.00015988,2]
[366192596,1750107050245,-536.92,0.00015988,2]
[366192597,1750107050254,-656.33,0.00015988,2]
[366192598,1750107050268,-2156.34,0.00015988,2]
[366192599,1750107050277,-902.74,0.00015988,2]
[366192600,1750107050287,-490.0,0.00015988,2]
[366192601,1750107050296,-1014.87,0.00015988,2]
[366192602,1750107050306,-490.0,0.00015988,2]
[366192603,1750107050316,-490.0,0.00015988,2]
[366192604,1750107050325,-1654.38,0.00015988,2]
[366192605,1750107050336,-490.0,0.00015988,2]
[366192606,1750107050346,-490.0,0.00015988,2]
[366192607,1750107050356,-490.0,0.00015988,2]
[366192608,1750107050366,-490.0,0.00015988,2]
[366192609,1750107050375,-490.0,0.00015988,2]
[366192610,1750107050384,-865.42,0.00015988,2]
[366192611,1750107050393,-1075.17,0.00015988,2]
[366192612,1750107050403,-490.0,0.00015988,2]
[366192613,1750107050413,-490.0,0.00015988,2]
[366192614,1750107050422,-490.0,0.00015988,2]
[366192615,1750107050431,-858.13,0.00015988,2]
[366192616,1750107050441,-490.0,0.00015988,2]
[366192617,1750107050451,-939.55,0.00015988,2]
[366192618,1750107050461,-1828.07,0.00015988,2]
[366192619,1750107050471,-490.0,0.00015988,2]
[366192620,1750107050481,-490.0,0.00015988,2]
[366192621,1750107050491,-490.0,0.00015988,2]
[366192622,1750107050500,-741.51,0.00015988,2]
[366192623,1750107050510,-490.0,0.00015988,2]
[366192624,1750107050520,-490.0,0.00015988,2]
[366192625,1750107050529,-597.65,0.00015988,2]
[366192626,1750107050540,-490.0,0.00015988,2]
[366192627,1750107050549,-490.0,0.00015988,2]
[366192628,1750107050560,-490.0,0.00015988,2]
[366192629,1750107050569,-490.0,0.00015988,2]
[366192630,1750107050579,-937.82,0.00015988,2]
[366192631,1750107050588,-490.0,0.00015988,2]
[366192632,1750107050598,-490.0,0.00015988,2]
[366192633,1750107050607,-490.0,0.00015988,2]
[366192634,1750107050617,-2186.04,0.00015988,2]
[366192635,1750107050626,-490.0,0.00015988,2]
[366192636,1750107050636,-490.0,0.00015988,2]
[366192637,1750107050646,-490.0,0.00015988,2]
[366192638,1750107050656,-801.65,0.00015988,2]
[366192639,1750107050665,-4764.38,0.00015988,2]
[366192640,1750107050675,-521.56,0.00015988,2]
[366192641,1750107050685,-490.0,0.00015988,2]
[366192642,1750107050695,-490.0,0.00015988,2]
[366192643,1750107050704,-1659.37,0.00015988,2]
[366192644,1750107050714,-755.03,0.00015988,2]
[366192645,1750107050723,-490.0,0.00015988,2]
[366192646,1750107050733,-490.0,0.00015988,2]
[366192647,1750107050743,-1432.97,0.00015988,2]
[366192648,1750107050755,-490.0,0.00015988,2]
[366192649,1750107050765,-490.0,0.00015988,2]
[366192650,1750107050775,-167.01,0.00015988,2]
[366192651,1750107050784,-1000.0,0.00015988,2]
[366192652,1750107050794,-490.0,0.00015988,2]
[366192653,1750107050803,-784.16,0.00015988,2]
[366192654,1750107050813,-490.0,0.00015988,2]
[366192655,1750107050822,-490.0,0.00015988,2]
[366192656,1750107050832,-490.0,0.00015988,2]
[366192657,1750107050842,-490.0,0.00015988,2]
[366192658,1750107050852,-490.0,0.00015988,2]
[366192659,1750107050861,-490.0,0.00015988,2]
[366192660,1750107050871,-560.77,0.00015988,2]
[366192661,1750107050881,-490.0,0.00015988,2]
[366192662,1750107050890,-910.87,0.00015988,2]
[366192663,1750107050900,-3192.11,0.00015988,2]
[366192664,1750107050909,-1770.15,0.00015988,2]
[366192665,1750107050919,-490.0,0.00015988,2]
[366192666,1750107050928,-490.0,0.00015988,2]
[366192667,1750107050938,-490.0,0.00015988,2]
[366192668,1750107050947,-1177.65,0.00015988,2]
[366192669,1750107050957,-490.0,0.00015988,2]
[366192670,1750107050967,-800.75,0.00015988,2]
[366192671,1750107050976,-490.0,0.00015988,2]
[366192672,1750107050987,-490.0,0.00015988,2]
[366192673,1750107050998,-621.14,0.00015988,2]
[366192674,1750107051008,-4951.22,0.00015988,2]
[366192675,1750107051017,-636.37,0.00015988,2]
[366192676,1750107051026,-490.0,0.00015988,2]
[366192677,1750107051036,-490.0,0.00015988,2]
[366192678,1750107051045,-490.0,0.00015988,2]
[366192679,1750107051055,-490.0,0.00015988,2]
[366192680,1750107051064,-490.0,0.00015988,2]
[366192681,1750107051073,-490.0,0.00015988,2]
[366192682,1750107051083,-490.0,0.00015988,2]
[366192683,1750107051093,-490.0,0.00015988,2]
[366192684,1750107051103,-580.65,0.00015988,2]
[366192685,1750107051112,-490.0,0.00015988,2]
[366192686,1750107051122,-490.0,0.00015988,2]
[366192687,1750107051131,-1278.17,0.00015988,2]
[366192688,1750107051141,-864.62,0.00015988,2]
[366192689,1750107051151,-626.75,0.00015988,2]
[366192690,1750107051161,-619.68,0.00015988,2]
[366192691,1750107051170,-498.85,0.00015988,2]
[366192692,1750107051180,-490.0,0.00015988,2]
[366192693,1750107051189,-2022.43,0.00015988,2]
[366192694,1750107051199,-490.0,0.00015988,2]
[366192695,1750107051209,-490.0,0.00015988,2]
[366192696,1750107051219,-490.0,0.00015988,2]
[366192697,1750107051229,-637.42,0.00015988,2]
[366192698,1750107051239,-490.0,0.00015988,2]
[366192699,1750107051249,-490.0,0.00015988,2]
[366192700,1750107051258,-506.21,0.00015988,2]
[366192701,1750107051268,-838.88,0.00015988,2]
[366192702,1750107051277,-1860.62,0.00015988,2]
[366192703,1750107051288,-490.0,0.00015988,2]
[366192704,1750107051297,-490.0,0.00015988,2]
[366192705,1750107051307,-594.97,0.00015988,2]
[366192706,1750107051316,-490.0,0.00015988,2]
[366192707,1750107051326,-490.0,0.00015988,2]
[366192708,1750107051336,-1260.16,0.00015988,2]
[366192709,1750107051346,-490.0,0.00015988,2]
[366192710,1750107051356,-699.31,0.00015988,2]
[366192711,1750107051366,-1145.01,0.00015988,2]
[366192712,1750107051375,-490.0,0.00015988,2]
[366192713,1750107051385,-490.0,0.00015988,2]
[366192714,1750107051395,-490.0,0.00015988,2]
[366192715,1750107051406,-490.0,0.00015988,2]
[366192716,1750107051416,-490.0,0.00015988,2]
[366192717,1750107051426,-490.0,0.00015988,2]
[366192718,1750107051435,-490.0,0.00015988,2]
[366192719,1750107051446,-490.0,0.00015988,2]
[366192720,1750107051455,-490.0,0.00015988,2]
[366192721,1750107051466,-490.0,0.00015988,2]
[366192722,1750107051476,-490.0,0.00015988,2]
[366192723,1750107051485,-957.87,0.00015988,2]
[366192724,1750107051496,-490.0,0.00015988,2]
[366192725,1750107051506,-490.0,0.00015988,2]
[366192726,1750107051515,-490.0,0.00015988,2]
[366192727,1750107051526,-505.04,0.00015988,2]
[366192728,1750107051535,-171.5288051,0.00015988,2]
[366192729,1750107051546,-490.0,0.00015988,2]
[366192730,1750107051555,-490.0,0.00015988,2]
[366192731,1750107051566,-1463.53,0.00015988,2]
[366192732,1750107051577,-490.0,0.00015988,2]
[366192733,1750107051587,-490.0,0.00015988,2]
[366192734,1750107051596,-490.0,0.00015988,2]
[366192735,1750107051606,-522.19,0.00015988,2]
[366192736,1750107051616,-490.0,0.00015988,2]
[366192737,1750107051625,-588.6,0.00015988,2]
[366192738,1750107051635,-490.0,0.00015989,2]
[366192739,1750107051644,-490.0,0.00015989,2]
[366192740,1750107051654,-490.0,0.00015989,2]
[366192741,1750107051663,-490.0,0.00015989,2]
[366192742,1750107051672,-490.0,0.00015989,2]
[366192743,1750107051681,-490.0,0.00015989,2]
[366192744,1750107051691,-333.90408345,0.00015989,2]
[366192745,1750107051701,-490.0,0.00015989,2]
[366192746,1750107051711,-490.0,0.00015989,2]
[366192747,1750107051720,-490.0,0.00015989,2]
[366192748,1750107051730,-490.0,0.00015989,2]
[366192749,1750107051741,-490.0,0.00015989,2]
[366192750,1750107051753,-490.0,0.00015989,2]
[366192751,1750107051764,-490.0,0.00015989,2]
[366192752,1750107051774,-490.0,0.00015989,2]
[366192753,1750107051783,-490.0,0.00015989,2]
[366192754,1750107051794,-490.0,0.00015989,2]
[366192755,1750107051805,-490.0,0.00015989,2]
[366192756,1750107051815,-490.0,0.00015989,2]
[366192757,1750107051824,-490.0,0.00015989,2]
[366192758,1750107051835,-490.0,0.00015989,2]
[366192759,1750107051846,-719.1,0.00015989,2]
[366192760,1750107051855,-490.0,0.00015989,2]
[366192761,1750107051864,-490.0,0.00015989,2]
[366192762,1750107051874,-490.0,0.00015989,2]
[366192763,1750107051883,-500.35,0.00015989,2]
[366192764,1750107051893,-490.0,0.00015989,2]
[366192765,1750107051903,-498.04,0.00015989,2]
[366192766,1750107051912,-490.0,0.00015989,2]
[366192767,1750107051923,-490.0,0.00015989,2]
[366192768,1750107051933,-490.0,0.00015989,2]
[366192769,1750107051943,-520.16,0.00015989,2]
[366192770,1750107051953,-490.0,0.00015989,2]
[366192771,1750107051964,-490.0,0.00015989,2]
[366192772,1750107051975,-490.0,0.00015989,2]
[366192773,1750107051984,-490.0,0.00015989,2]
[366192774,1750107051995,-490.0,0.00015989,2]
[366192775,1750107052005,-499.77,0.0001599,2]
[366192776,1750107052015,-510.77,0.0001599,2]
[366192777,1750107052025,-507.38,0.0001599,2]
[366192778,1750107052034,-490.0,0.0001599,2]
[366192779,1750107052044,-490.0,0.0001599,2]
[366192780,1750107052055,-693.42,0.0001599,2]
[366192781,1750107052066,-490.0,0.0001599,2]
[366192782,1750107052075,-490.0,0.0001599,2]
[366192783,1750107052085,-490.0,0.0001599,2]
[366192784,1750107052094,-801.76,0.0001599,2]
[366192785,1750107052103,-490.0,0.0001599,2]
[366192786,1750107052112,-526.8,0.0001599,2]
[366192787,1750107052123,-490.0,0.0001599,2]
[366192788,1750107052134,-548.44,0.0001599,2]
[366192789,1750107052144,-490.0,0.0001599,2]
[366192790,1750107052154,-908.38,0.0001599,2]
[366192791,1750107052164,-152.63354981,0.00015993,2]
[366192792,1750107052173,-228.99,0.00015999,2]
[366192793,1750107052183,-11717.92483916,0.00016,2]
[366192794,1750107052193,-250.0,0.00016016,2]
[366192795,1750107052202,-2812.26171337,0.00016035,2]
[366192796,1750107052211,-330.0,0.0001607,2]
[366192797,1750107052221,-250.0,0.00016074,2]
[366192798,1750107052232,-800.0,0.000161,5]
[366192799,1750107052241,-748.31072623,0.000161,2]
[366192800,1750107052250,-748.31072609,0.000161,2]
[366192801,1750107052260,-748.31072609,0.000161,2]
[366192802,1750107052270,-748.31072609,0.000161,2]
[366192803,1750107052280,-184.75274137,0.000161,2]
[366192804,1750107052320,-6306.36,0.00015988,2]
[366192805,1750107052330,-563.55798472,0.000161,2]
[366192806,1750107052339,-748.31072609,0.000161,2]
[366192807,1750107052349,-748.31072609,0.00016107,2]
[366192808,1750107052359,-1817.82,0.00016116,2]
[366192809,1750107052368,-833.8156298,0.00016124,2]
[366192810,1750107052378,-748.31072609,0.00016141,2]
[366192811,1750107052388,-490.0,0.00016152,2]
[366192812,1750107052397,-1008.651933,0.00016152,2]
[366192813,1750107052407,-490.0,0.00016152,2]
[366192814,1750107052416,-599.758543,0.00016152,2]
[366192815,1750107052425,-696.42,0.00016152,2]
[366192816,1750107052435,-490.0,0.00016152,2]
[366192817,1750107052445,-1727.06,0.00016152,2]
[366192818,1750107052456,-536.92,0.00016152,2]
[366192819,1750107052466,-902.74,0.00016152,2]
[366192820,1750107052475,-490.0,0.00016152,2]
[366192821,1750107052484,-490.0,0.00016152,2]
[366192822,1750107052494,-865.42,0.00016152,2]
[366192823,1750107052504,-939.55,0.00016152,2]
[366192824,1750107052514,-154.98,0.00016152,2]
[366192825,1750107052523,-490.0,0.00016152,2]
[366192826,1750107052532,-741.51,0.00016152,2]
[366192827,1750107052541,-534.72895657,0.00016152,2]
[366192828,1750107052551,-490.0,0.00016152,2]
[366192829,1750107052560,-490.0,0.00016152,2]
[366192830,1750107052570,-490.0,0.00016152,2]
[366192831,1750107052579,-490.0,0.00016152,2]
[366192832,1750107052588,-490.0,0.00016152,2]
[366192833,1750107052598,-490.0,0.00016152,2]
[366192834,1750107052608,-490.0,0.00016152,2]
[366192835,1750107052617,-490.0,0.00016152,2]
[366192836,1750107052627,-801.65,0.00016152,2]
[366192837,1750107052636,-521.56,0.00016152,2]
[366192838,1750107052645,-755.03,0.00016152,2]
[366192839,1750107052655,-490.0,0.00016152,2]
[366192840,1750107052664,-490.0,0.00016152,2]
[366192841,1750107052674,-1432.97,0.00016152,2]
[366192842,1750107052683,-784.16,0.00016152,2]
[366192843,1750107052693,-490.0,0.00016152,2]
[366192844,1750107052703,-490.0,0.00016152,2]
[366192845,1750107052714,-490.0,0.00016152,2]
[366192846,1750107052723,-490.0,0.00016152,2]
[366192847,1750107052733,-910.87,0.00016152,2]
[366192848,1750107052743,-1770.15,0.00016152,2]
[366192849,1750107052755,-490.0,0.00016152,2]
[366192850,1750107052764,-1177.65,0.00016152,2]
[366192851,1750107052775,-490.0,0.00016152,2]
[366192852,1750107052785,-490.0,0.00016152,2]
[366192853,1750107052795,-636.37,0.00016152,2]
[366192854,1750107052804,-537.7,0.00016152,2]
[366192855,1750107052814,-490.0,0.00016152,2]
[366192856,1750107052823,-490.0,0.00016152,2]
[366192857,1750107052833,-490.0,0.00016152,2]
[366192858,1750107052843,-490.0,0.00016152,2]
[366192859,1750107052853,-490.0,0.00016152,2]
[366192860,1750107052862,-1278.17,0.00016152,2]
[366192861,1750107052872,-864.62,0.00016152,2]
[366192862,1750107052881,-490.0,0.00016152,2]
[366192863,1750107052891,-2022.43,0.00016152,2]
[366192864,1750107052901,-490.0,0.00016152,2]
[366192865,1750107052911,-637.42,0.00016152,2]
[366192866,1750107052921,-490.0,0.00016152,2]
[366192867,1750107052931,-838.88,0.00016152,2]
[366192868,1750107052941,-490.0,0.00016152,2]
[366192869,1750107052951,-594.97,0.00016152,2]
[366192870,1750107052962,-490.0,0.00016152,2]
[366192871,1750107052972,-490.0,0.00016152,2]
[366192872,1750107052982,-1260.16,0.00016152,2]
[366192873,1750107052992,-1145.01,0.00016152,2]
[366192874,1750107053002,-490.0,0.00016152,2]
[366192875,1750107053011,-490.0,0.00016152,2]
[366192876,1750107053021,-490.0,0.00016152,2]
[366192877,1750107053031,-490.0,0.00016152,2]
[366192878,1750107053041,-490.0,0.00016152,2]
[366192879,1750107053051,-490.0,0.00016152,2]
[366192880,1750107053060,-957.87,0.00016152,2]
[366192881,1750107053070,-490.0,0.00016152,2]
[366192882,1750107053080,-490.0,0.00016152,2]
[366192883,1750107053089,-505.04,0.00016152,2]
[366192884,1750107053098,-490.0,0.00016152,2]
[366192885,1750107053108,-1463.53,0.00016152,2]
[366192886,1750107053117,-490.0,0.00016152,2]
[366192887,1750107053126,-475.49,0.00016152,2]
[366192888,1750107053136,-490.0,0.00016152,2]
[366192889,1750107053145,-522.19,0.00016152,2]
[366192890,1750107053154,-588.6,0.00016152,2]
[366192891,1750107053165,-490.0,0.00016153,2]
[366192892,1750107053175,-490.0,0.00016153,2]
[366192893,1750107053185,-490.0,0.00016153,2]
[366192894,1750107053195,-490.0,0.00016153,2]
[366192895,1750107053205,-490.0,0.00016153,2]
[366192896,1750107053214,-490.0,0.00016153,2]
[366192897,1750107053224,-490.0,0.00016153,2]
[366192898,1750107053233,-490.0,0.00016153,2]
[366192899,1750107053243,-490.0,0.00016153,2]
[366192900,1750107053253,-490.0,0.00016153,2]
[366192901,1750107053262,-490.0,0.00016153,2]
[366192902,1750107053272,-490.0,0.00016153,2]
[366192903,1750107053283,-490.0,0.00016153,2]
[366192904,1750107053292,-490.0,0.00016153,2]
[366192905,1750107053303,-490.0,0.00016153,2]
[366192906,1750107053312,-525.97,0.00016153,2]
[366192907,1750107053322,-490.0,0.00016153,2]
[366192908,1750107053332,-490.0,0.00016153,2]
[366192909,1750107053341,-490.0,0.00016153,2]
[366192910,1750107053351,-490.0,0.00016153,2]
[366192911,1750107053361,-490.0,0.00016153,2]
[366192912,1750107053372,-490.0,0.00016153,2]
[366192913,1750107053381,-490.0,0.00016153,2]
[366192914,1750107053391,-490.0,0.00016153,2]
[366192915,1750107053402,-490.0,0.00016153,2]
[366192916,1750107053412,-490.0,0.00016153,2]
[366192917,1750107053422,-490.0,0.00016153,2]
[366192918,1750107053432,-490.0,0.00016153,2]
[366192919,1750107053442,-490.0,0.00016153,2]
[366192920,1750107053452,-490.0,0.00016153,2]
[366192921,1750107053461,-490.0,0.00016153,2]
[366192922,1750107053471,-490.0,0.00016153,2]
[366192923,1750107053481,-490.0,0.00016153,2]
[366192924,1750107053491,-490.0,0.00016153,2]
[366192925,1750107053505,-490.0,0.00016153,2]
[366192926,1750107053515,-490.0,0.00016153,2]
[366192927,1750107053526,-719.1,0.00016153,2]
[366192928,1750107053535,-490.0,0.00016153,2]
[366192929,1750107053546,-559.49,0.00016153,2]
[366192930,1750107053555,-177.43084162,0.00016153,2]
[366192931,1750107053777,-490.0,0.00016153,2]
[366192932,1750107053789,-490.0,0.00016153,2]